fUSD/lending_fUSD_20250916
["ID","MTS","AMOUNT","RATE_DAILY","PERIOD"]
[385841343,1758059459149,-400.0,0.0003041,6]
[385841344,1758059459158,-400.0,0.0003041,6]
[385841345,1758059459167,-400.0,0.0003041,6]
[385841346,1758059459177,-400.0,0.0003041,6]
[385841347,1758059459186,-400.0,0.0003041,6]
[385841348,1758059459195,-467.3,0.0003041,6]
[385841349,1758059459205,-400.0,0.0003041,6]
[385841350,1758059459214,-450.16,0.0003041,6]
[385841351,1758059459224,-400.0,0.0003041,6]
[385841352,1758059459233,-400.0,0.0003041,6]
[385841353,1758059459242,-400.0,0.0003041,6]
[385841354,1758059459252,-400.0,0.0003041,6]
[385841355,1758059459261,-400.0,0.0003041,6]
[385841356,1758059459270,-400.0,0.0003041,5]
[385841357,1758059459279,-400.0,0.0003041,6]
[385841358,1758059459288,-1181.9,0.0003041,6]
[385841359,1758059459298,-400.0,0.0003041,6]
[385841360,1758059459307,-400.0,0.0003041,6]
[385841361,1758059459316,-403.48067417,0.0003041,6]
[385841362,1758059459325,-400.0,0.0003041,6]
[385841363,1758059459334,-400.0,0.0003041,6]
[385841364,1758059459346,-400.0,0.0003041,6]
[385841365,1758059459355,-400.0,0.0003041,6]
[385841366,1758059459364,-400.0,0.0003041,6]
[385841367,1758059459374,-431.77,0.0003041,6]
[385841368,1758059459387,-400.0,0.0003041,6]
[385841369,1758059459396,-400.0,0.0003041,6]
[385841370,1758059459405,-400.0,0.0003041,6]
[385841371,1758059459415,-400.0,0.0003041,6]
[385841372,1758059459424,-400.0,0.0003041,6]
[385841373,1758059459434,-400.0,0.0003041,6]
[385841374,1758059459443,-400.0,0.0003041,6]
[385841375,1758059459453,-400.0,0.0003041,6]
[385841376,1758059459463,-1421.99,0.0003041,6]
[385841377,1758059459473,-400.0,0.0003041,6]
[385841378,1758059459482,-400.0,0.0003041,6]
[385841379,1758059459492,-604.53,0.0003041,6]
[385841380,1758059459501,-405.2373872,0.0003041,6]
[385841381,1758059459510,-400.0,0.0003041,6]
[385841382,1758059459520,-400.0,0.0003041,6]
[385841383,1758059459529,-417.22,0.0003041,6]
[385841384,1758059459538,-633.44,0.0003041,6]
[385841385,1758059459550,-400.0,0.0003041,6]
[385841386,1758059459559,-410.44050235,0.0003041,6]
[385841387,1758059459568,-400.0,0.0003041,6]
[385841388,1758059459577,-400.0,0.0003041,6]
[385841389,1758059459587,-400.0,0.0003041,6]
[385841390,1758059459596,-400.0,0.0003041,6]
[385841391,1758059459605,-400.0,0.0003041,6]
[385841392,1758059459615,-400.0,0.0003041,6]
[385841393,1758059459625,-400.0,0.0003041,6]
[385841394,1758059459635,-400.0,0.0003041,6]
[385841395,1758059459645,-343.15472105,0.0003041,6]
[385841396,1758059459654,-400.0,0.0003041,6]
[385841397,1758059459664,-400.0,0.0003041,6]
[385841398,1758059459673,-500.0,0.00030411,7]
[385841399,1758059459682,-500.0,0.00030411,7]
[385841400,1758059459691,-500.0,0.00030411,7]
[385841401,1758059459700,-500.0,0.00030411,7]
[385841402,1758059459709,-500.0,0.00030411,7]
[385841403,1758059459718,-500.0,0.00030411,7]
[385841404,1758059459728,-500.0,0.00030411,7]
[385841405,1758059459737,-500.0,0.00030411,7]
[385841406,1758059459746,-500.0,0.00030411,7]
[385841407,1758059459755,-500.0,0.00030411,7]
[385841408,1758059459765,-500.0,0.00030411,7]
[385841409,1758059459774,-500.0,0.00030411,7]
[385841410,1758059459783,-500.0,0.00030411,7]
[385841411,1758059459792,-500.0,0.00030411,7]
[385841412,1758059459801,-500.0,0.00030411,7]
[385841413,1758059459811,-500.0,0.00030411,7]
[385841414,1758059459822,-500.0,0.00030411,7]
[385841415,1758059459834,-500.0,0.00030411,7]
[385841416,1758059459843,-500.0,0.00030411,7]
[385841417,1758059459852,-500.0,0.00030411,7]
[385841418,1758059459861,-500.0,0.00030411,7]
[385841419,1758059459871,-500.0,0.00030411,7]
[385841420,1758059459880,-500.0,0.00030411,7]
[385841421,1758059459889,-500.0,0.00030411,7]
[385841422,1758059459899,-980.83723474,0.00030411,7]
[385841423,1758059459910,-500.0,0.00030471,2]
[385841424,1758059459918,-500.0,0.00030471,2]
[385841425,1758059459928,-500.0,0.00030471,2]
[385841426,1758059459937,-500.0,0.00030471,2]
[385841427,1758059459946,-500.0,0.00030471,2]
[385841428,1758059459954,-500.0,0.00030471,2]
[385841429,1758059459963,-420.46,0.00030471,2]
[385841430,1758059459973,-638.19,0.00030471,6]
[385841431,1758059459982,-400.0,0.00030472,6]
[385841432,1758059459991,-400.0,0.00030472,6]
[385841433,1758059460000,-399.77605006,0.00030472,6]
[385841434,1758059460009,-401.87219587,0.00030472,6]
[385841435,1758059460019,-400.0,0.00030472,6]
[385841436,1758059460028,-410.05834898,0.00030472,6]
[385841437,1758059460037,-400.0,0.00030472,6]
[385841438,1758059460047,-400.0,0.00030472,6]
[385841439,1758059460056,-400.0,0.00030472,6]
[385841440,1758059460065,-400.0,0.00030472,6]
[385841441,1758059460075,-400.0,0.00030472,6]
[385841442,1758059460084,-419.57451582,0.00030472,6]
[385841443,1758059460093,-400.0,0.00030472,6]
[385841444,1758059460102,-414.70776751,0.00030472,6]
[385841445,1758059460111,-400.0,0.00030472,6]
[385841446,1758059460120,-400.0,0.00030472,6]
[385841447,1758059460129,-400.0,0.00030472,6]
[385841448,1758059460137,-400.0,0.00030472,6]
[385841449,1758059460146,-400.0,0.00030472,6]
[385841450,1758059460155,-400.60515634,0.00030472,6]
[385841451,1758059460164,-400.0,0.00030472,6]
[385841452,1758059460173,-400.0,0.00030472,6]
[385841453,1758059460182,-400.0,0.00030472,6]
[385841454,1758059460192,-400.0,0.00030472,6]
[385841455,1758059460201,-400.0,0.00030472,6]
[385841456,1758059460210,-892.92,0.00030472,6]
[385841457,1758059460219,-400.0,0.00030472,6]
[385841458,1758059460228,-568.06,0.00030472,6]
[385841459,1758059460237,-400.0,0.00030472,6]
[385841460,1758059460246,-1072.67,0.00030472,6]
[385841461,1758059460255,-400.0,0.00030472,6]
[385841462,1758059460264,-512.55,0.00030472,6]
[385841463,1758059460273,-774.02,0.00030472,5]
[385841464,1758059460282,-400.0,0.00030472,6]
[385841465,1758059460291,-400.0,0.00030472,6]
[385841466,1758059460300,-400.0,0.00030472,6]
[385841467,1758059460310,-400.0,0.00030472,6]
[385841468,1758059460319,-500.0,0.00030473,5]
[385841469,1758059460329,-500.0,0.00030473,5]
[385841470,1758059460338,-504.38442263,0.00030473,5]
[385841471,1758059460347,-500.0,0.00030473,5]
[385841472,1758059460356,-504.60384057,0.00030473,5]
[385841473,1758059460365,-150.0,0.00030473,5]
[385841474,1758059460374,-159.0,0.00030479,14]
[385841475,1758059460385,-15084.844287,0.00030641,2]
[385841476,1758059460395,-2058.39,0.00030645,6]
[385841477,1758059460404,-400.0,0.00030645,6]
[385841478,1758059460413,-412.53,0.00030645,6]
[385841479,1758059460422,-618.61,0.00030645,6]
[385841480,1758059460432,-1651.68,0.00030645,6]
[385841481,1758059460441,-2717.2,0.00030645,6]
[385841482,1758059460450,-400.0,0.00030645,6]
[385841483,1758059460460,-400.0,0.00030645,6]
[385841484,1758059460470,-462.71,0.00030645,6]
[385841485,1758059460479,-400.0,0.00030645,6]
[385841486,1758059460488,-400.0,0.00030645,6]
[385841487,1758059460497,-400.0,0.00030645,6]
[385841488,1758059460507,-400.0,0.00030645,6]
[385841489,1758059460516,-400.0,0.00030645,6]
[385841490,1758059460525,-400.0,0.00030645,6]
[385841491,1758059460535,-3231.76,0.00030645,6]
[385841492,1758059460545,-400.0,0.00030645,6]
[385841493,1758059460554,-436.89,0.00030645,6]
[385841494,1758059460563,-400.0,0.00030645,6]
[385841495,1758059460572,-1400.0,0.00030646,7]
[385841496,1758059460582,-163.56589803,0.00030646,2]
[385841497,1758059460592,-2997.15,0.00030656,26]
[385841498,1758059460601,-161.827,0.00030656,26]
[385841499,1758059460610,-500.0,0.00030667,11]
[385841500,1758059460619,-389.00242953,0.00030667,11]
[385841501,1758059460629,-500.0,0.00030676,11]
[385841502,1758059460638,-500.0,0.00030676,11]
[385841503,1758059460647,-500.0,0.00030676,11]
[385841504,1758059460656,-500.0,0.00030676,11]
[385841505,1758059460665,-500.0,0.00030676,11]
[385841506,1758059460674,-500.0,0.00030676,11]
[385841507,1758059460683,-500.0,0.00030676,11]
[385841508,1758059460692,-500.0,0.00030676,11]
[385841509,1758059460701,-485.67,0.00030682,6]
[385841510,1758059460710,-400.0,0.00030682,6]
[385841511,1758059460722,-467.8,0.00030682,6]
[385841512,1758059460731,-400.0,0.00030682,6]
[385841513,1758059460742,-400.0,0.00030683,6]
[385841514,1758059460751,-438.39774355,0.00030683,6]
[385841515,1758059460760,-404.97,0.00030683,6]
[385841516,1758059460769,-431.58,0.00030683,6]
[385841517,1758059460779,-564.94,0.00030683,6]
[385841518,1758059460789,-400.0,0.00030683,6]
[385841519,1758059460798,-475.93,0.00030683,6]
[385841520,1758059460807,-646.81,0.00030683,6]
[385841521,1758059460815,-400.0,0.00030683,6]
[385841522,1758059460824,-400.0,0.00030683,6]
[385841523,1758059460834,-400.0,0.00030683,6]
[385841524,1758059460843,-503.49,0.00030683,6]
[385841525,1758059460852,-555.18,0.00030683,6]
[385841526,1758059461018,-493.67,0.00030683,6]
[385841527,1758059461027,-406.48,0.00030683,6]
[385841528,1758059461037,-400.0,0.00030683,6]
[385841529,1758059461045,-472.57,0.00030683,6]
[385841530,1758059461054,-566.4,0.00030683,6]
[385841531,1758059461063,-443.11,0.00030683,6]
[385841532,1758059461072,-400.0,0.00030683,6]
[385841533,1758059461081,-556.41,0.00030683,6]
[385841534,1758059461090,-642.62,0.00030683,6]
[385841535,1758059461098,-526.48,0.00030683,6]
[385841536,1758059461107,-638.73,0.00030683,6]
[385841537,1758059461117,-400.0,0.00030683,6]
[385841538,1758059461126,-400.0,0.00030683,6]
[385841539,1758059461135,-400.0,0.00030683,6]
[385841540,1758059461144,-514.99,0.00030683,6]
[385841541,1758059461153,-477.56,0.00030683,6]
[385841542,1758059461162,-400.0,0.00030683,6]
[385841543,1758059461171,-400.0,0.00030683,6]
[385841544,1758059461180,-824.84,0.00030683,6]
[385841545,1758059461189,-558.91,0.00030683,6]
[385841546,1758059461198,-429.04,0.00030683,6]
[385841547,1758059461206,-771.88,0.00030683,6]
[385841548,1758059461215,-400.0,0.00030683,6]
[385841549,1758059461224,-456.11,0.00030683,6]
[385841550,1758059461233,-400.0,0.00030683,6]
[385841551,1758059461242,-422.65,0.00030683,6]
[385841552,1758059461251,-400.0,0.00030683,6]
[385841553,1758059461260,-308.36556219,0.00030683,6]
[385841554,1758059461269,-400.0,0.00030683,6]
[385841555,1758059461278,-400.0,0.00030683,6]
[385841556,1758059461288,-400.0,0.00030683,6]
[385841557,1758059461297,-400.0,0.00030683,6]
[385841558,1758059461306,-682.71,0.00030683,6]
[385841559,1758059461315,-1411.58,0.00030683,6]
[385841560,1758059461324,-1000.0,0.00030683,6]
[385841561,1758059461333,-876.88,0.00030683,6]
[385841562,1758059461343,-400.0,0.00030683,6]
[385841563,1758059461352,-590.13,0.00030683,6]
[385841564,1758059461361,-500.0,0.00030683,6]
[385841565,1758059461370,-150.0,0.00030683,2]
[385841566,1758059461380,-400.0,0.00030683,6]
[385841567,1758059461395,-590.27,0.00030683,6]
[385841568,1758059461404,-400.0,0.00030684,6]
[385841569,1758059461413,-255.46775521,0.00030684,6]
[385841570,1758059461423,-400.0,0.00030684,6]
[385841571,1758059461434,-400.0,0.00030684,6]
[385841572,1758059461443,-400.0,0.00030684,6]
[385841573,1758059461452,-400.0,0.00030684,6]
[385841574,1758059461462,-400.0,0.00030684,6]
[385841575,1758059461472,-400.0,0.00030684,6]
[385841576,1758059461481,-400.0,0.00030684,6]
[385841577,1758059461490,-400.0,0.00030684,6]
[385841578,1758059461499,-400.0,0.00030684,6]
[385841579,1758059461509,-400.0,0.00030684,6]
[385841580,1758059461519,-400.0,0.00030684,6]
[385841581,1758059461527,-400.0,0.00030684,6]
[385841582,1758059461537,-400.0,0.00030684,6]
[385841583,1758059461546,-400.0,0.00030684,6]
[385841584,1758059461556,-400.0,0.00030684,6]
[385841585,1758059461566,-400.0,0.00030684,6]
[385841586,1758059461576,-400.0,0.00030684,6]
[385841587,1758059461585,-400.0,0.00030684,6]
[385841588,1758059461596,-400.0,0.00030684,6]
[385841589,1758059461606,-400.0,0.00030684,6]
[385841590,1758059461617,-400.0,0.00030684,6]
[385841591,1758059461626,-400.0,0.00030684,6]
[385841592,1758059461635,-400.0,0.00030684,6]
[385841593,1758059461645,-400.0,0.00030684,6]
[385841594,1758059461654,-400.0,0.00030684,6]
[385841595,1758059461663,-400.0,0.00030684,6]
[385841596,1758059461672,-400.0,0.00030684,6]
[385841597,1758059461681,-400.0,0.00030684,6]
[385841598,1758059461690,-400.0,0.00030684,6]
[385841599,1758059461699,-400.0,0.00030684,6]
[385841600,1758059461709,-400.0,0.00030684,6]
[385841601,1758059461719,-400.0,0.00030684,6]
[385841602,1758059461730,-400.0,0.00030684,6]
[385841603,1758059461739,-400.0,0.00030684,6]
[385841604,1758059461750,-400.0,0.00030684,6]
[385841605,1758059461758,-400.0,0.00030684,6]
[385841606,1758059461767,-400.0,0.00030684,6]
[385841607,1758059461777,-400.0,0.00030684,6]
[385841608,1758059461786,-400.0,0.00030684,6]
[385841609,1758059461795,-400.0,0.00030684,6]
[385841610,1758059461804,-400.0,0.00030684,6]
[385841611,1758059461813,-400.0,0.00030684,6]
[385841612,1758059461823,-404.68878589,0.00030684,6]
[385841613,1758059461832,-446.83,0.00030684,6]
[385841614,1758059461841,-400.0,0.00030684,6]
[385841615,1758059461852,-400.0,0.00030684,6]
[385841616,1758059461862,-400.0,0.00030684,6]
[385841617,1758059461871,-400.0,0.00030684,6]
[385841618,1758059461880,-400.0,0.00030684,6]
[385841619,1758059461890,-400.0,0.00030684,6]
[385841620,1758059461901,-400.0,0.00030684,6]
[385841621,1758059461910,-416.21605291,0.00030684,6]
[385841622,1758059461919,-400.0,0.00030684,6]
[385841623,1758059461928,-403.4855429,0.00030684,6]
[385841624,1758059461937,-400.0,0.00030684,6]
[385841625,1758059461947,-400.0,0.00030684,6]
[385841626,1758059461956,-400.0,0.00030684,6]
[385841627,1758059461965,-260.30925565,0.00030684,6]
[385841628,1758059461974,-400.0,0.00030684,6]
[385841629,1758059461984,-400.0,0.00030684,6]
[385841630,1758059461993,-400.0,0.00030684,6]
[385841631,1758059462004,-400.0,0.00030684,6]
[385841632,1758059462014,-400.0,0.00030684,6]
[385841633,1758059462023,-400.0,0.00030684,6]
[385841634,1758059462033,-400.0,0.00030684,6]
[385841635,1758059462043,-547.28,0.00030684,6]
[385841636,1758059462052,-400.0,0.00030684,6]
[385841637,1758059462061,-400.0,0.00030684,6]
[385841638,1758059462070,-400.0,0.00030684,6]
[385841639,1758059462079,-400.0,0.00030684,6]
[385841640,1758059462089,-400.0,0.00030684,6]
[385841641,1758059462098,-400.0,0.00030684,6]
[385841642,1758059462107,-400.0,0.00030684,6]
[385841643,1758059462116,-500.0,0.00030684,14]
[385841644,1758059462125,-400.0,0.00030684,6]
[385841645,1758059462134,-400.0,0.00030684,6]
[385841646,1758059462143,-400.0,0.00030684,6]
[385841647,1758059462152,-400.0,0.00030684,6]
[385841648,1758059462161,-400.0,0.00030684,6]
[385841649,1758059462170,-400.0,0.00030684,6]
[385841650,1758059462180,-400.0,0.00030684,6]
[385841651,1758059462189,-402.80564376,0.00030684,6]
[385841652,1758059462198,-400.0,0.00030684,6]
[385841653,1758059462207,-400.0,0.00030684,6]
[385841654,1758059462216,-400.0,0.00030684,6]
[385841655,1758059462225,-400.0,0.00030684,6]
[385841656,1758059462234,-400.0,0.00030684,6]
[385841657,1758059462244,-400.0,0.00030684,6]
[385841658,1758059462253,-400.0,0.00030684,6]
[385841659,1758059462263,-400.0,0.00030684,6]
[385841660,1758059462272,-400.0,0.00030684,6]
[385841661,1758059462281,-400.0,0.00030684,6]
[385841662,1758059462290,-400.0,0.00030684,6]
[385841663,1758059462299,-400.0,0.00030684,6]
[385841664,1758059462309,-400.0,0.00030684,6]
[385841665,1758059462318,-400.0,0.00030684,6]
[385841666,1758059462328,-400.0,0.00030684,6]
[385841667,1758059462337,-456.02463733,0.00030684,6]
[385841668,1758059462346,-404.16,0.00030684,6]
[385841669,1758059462355,-400.0,0.00030684,6]
[385841670,1758059462365,-400.0,0.00030684,6]
[385841671,1758059462374,-400.0,0.00030684,6]
[385841672,1758059462383,-528.17,0.00030684,6]
[385841673,1758059462396,-400.0,0.00030684,6]
[385841674,1758059462405,-542.9,0.00030684,6]
[385841675,1758059462414,-400.0,0.00030684,6]
[385841676,1758059462423,-400.0,0.00030684,6]
[385841677,1758059462433,-486.61583856,0.00030684,2]
[385841678,1758059462442,-400.0,0.00030684,6]
[385841679,1758059462451,-404.33180678,0.00030684,6]
[385841680,1758059462461,-513.24553808,0.00030684,6]
[385841681,1758059462471,-400.0,0.00030684,6]
[385841682,1758059462481,-400.0,0.00030684,6]
[385841683,1758059462490,-400.0,0.00030684,6]
[385841684,1758059462499,-400.0,0.00030684,6]
[385841685,1758059462508,-400.0,0.00030684,6]
[385841686,1758059462518,-400.0,0.00030684,6]
[385841687,1758059462527,-391.567355,0.00030684,6]
[385841688,1758059462537,-400.0,0.00030684,6]
[385841689,1758059462545,-400.0,0.00030684,6]
[385841690,1758059462555,-400.0,0.00030684,6]
[385841691,1758059462564,-400.0,0.00030684,6]
[385841692,1758059462574,-400.0,0.00030684,6]
[385841693,1758059462583,-400.0,0.00030684,6]
[385841694,1758059462592,-854.5,0.00030684,6]
[385841695,1758059462601,-400.0,0.00030684,6]
[385841696,1758059462610,-403.43,0.00030684,6]
[385841697,1758059462619,-400.0,0.00030684,6]
[385841698,1758059462629,-400.0,0.00030684,6]
[385841699,1758059462638,-400.0,0.00030684,6]
[385841700,1758059462647,-400.0,0.00030684,6]
[385841701,1758059462656,-400.0,0.00030684,6]
[385841702,1758059462665,-400.0,0.00030684,6]
[385841703,1758059462674,-400.0,0.00030684,6]
[385841704,1758059462683,-407.05073847,0.00030684,6]
[385841705,1758059462693,-400.0,0.00030684,6]
[385841706,1758059462702,-400.0,0.00030684,6]
[385841707,1758059462711,-400.0,0.00030684,6]
[385841708,1758059462721,-400.0,0.00030684,6]
[385841709,1758059462729,-400.0,0.00030684,6]
[385841710,1758059462739,-400.0,0.00030684,6]
[385841711,1758059462749,-400.0,0.00030684,6]
[385841712,1758059462758,-406.90132278,0.00030684,6]
[385841713,1758059462767,-400.0,0.00030684,6]
[385841714,1758059462776,-400.0,0.00030684,6]
[385841715,1758059462786,-400.0,0.00030684,6]
[385841716,1758059462796,-400.0,0.00030684,6]
[385841717,1758059462804,-400.0,0.00030684,6]
[385841718,1758059462813,-400.0,0.00030684,6]
[385841719,1758059462822,-400.0,0.00030684,6]
[385841720,1758059462831,-400.0,0.00030684,6]
[385841721,1758059462841,-400.0,0.00030684,6]
[385841722,1758059462850,-400.0,0.00030684,6]
[385841723,1758059462859,-400.0,0.00030684,6]
[385841724,1758059462868,-425.79,0.00030684,6]
[385841725,1758059462877,-400.0,0.00030684,6]
[385841726,1758059462886,-440.62,0.00030684,6]
[385841727,1758059462895,-400.0,0.00030684,6]
[385841728,1758059462904,-400.0,0.00030684,6]
[385841729,1758059462913,-400.0,0.00030684,6]
[385841730,1758059462922,-400.0,0.00030684,6]
[385841731,1758059462931,-627.06,0.00030684,6]
[385841732,1758059462939,-400.0,0.00030684,6]
[385841733,1758059462948,-400.0,0.00030684,6]
[385841734,1758059462958,-400.0,0.00030684,6]
[385841735,1758059462968,-411.9578313,0.00030684,6]
[385841736,1758059462977,-400.0,0.00030684,6]
[385841737,1758059462986,-400.0,0.00030684,6]
[385841738,1758059462995,-404.88,0.00030684,6]
[385841739,1758059463004,-400.0,0.00030684,6]
[385841740,1758059463013,-400.0,0.00030684,6]
[385841741,1758059463023,-597.91,0.00030684,6]
[385841742,1758059463032,-405.66687372,0.00030684,6]
[385841743,1758059463041,-400.0,0.00030684,6]
[385841744,1758059463050,-400.0,0.00030684,6]
[385841745,1758059463059,-550.75,0.00030684,6]
[385841746,1758059463068,-482.27,0.00030684,6]
[385841747,1758059463077,-400.0,0.00030684,6]
[385841748,1758059463086,-400.0,0.00030684,6]
[385841749,1758059463095,-494.06874944,0.00030684,6]
[385841750,1758059463104,-400.0,0.00030684,6]
[385841751,1758059463114,-405.56359501,0.00030684,6]
[385841752,1758059463123,-400.0,0.00030684,6]
[385841753,1758059463132,-400.0,0.00030684,6]
[385841754,1758059463141,-400.0,0.00030684,6]
[385841755,1758059463150,-489.33,0.00030684,6]
[385841756,1758059463159,-238.46112808,0.00030684,6]
[385841757,1758059463168,-400.0,0.00030684,6]
[385841758,1758059463177,-400.0,0.00030684,6]
[385841759,1758059463186,-400.0,0.00030684,6]
[385841760,1758059463196,-400.44,0.00030684,6]
[385841761,1758059463205,-400.0,0.00030684,6]
[385841762,1758059463214,-432.89,0.00030684,6]
[385841763,1758059463223,-1630.47,0.00030684,6]
[385841764,1758059463233,-400.0,0.00030684,6]
[385841765,1758059463243,-400.0,0.00030684,6]
[385841766,1758059463252,-400.0,0.00030684,6]
[385841767,1758059463262,-400.0,0.00030684,6]
[385841768,1758059463271,-400.0,0.00030684,6]
[385841769,1758059463281,-400.0,0.00030684,6]
[385841770,1758059463290,-400.0,0.00030684,6]
[385841771,1758059463300,-400.0,0.00030684,6]
[385841772,1758059463310,-464.0,0.00030684,6]
[385841773,1758059463319,-400.0,0.00030684,6]
[385841774,1758059463329,-541.51,0.00030684,6]
[385841775,1758059463338,-270.70565691,0.00030684,6]
[385841776,1758059463348,-400.0,0.00030684,6]
[385841777,1758059463358,-400.0,0.00030684,6]
[385841778,1758059463368,-400.0,0.00030684,6]
[385841779,1758059463378,-400.0,0.00030684,6]
[385841780,1758059463389,-400.0,0.00030684,6]
[385841781,1758059463398,-400.0,0.00030684,6]
[385841782,1758059463408,-400.0,0.00030684,6]
[385841783,1758059463417,-431.13,0.00030684,6]
[385841784,1758059463427,-666.3,0.00030684,6]
[385841785,1758059463437,-400.0,0.00030684,6]
[385841786,1758059463446,-400.0,0.00030684,6]
[385841787,1758059463456,-400.0,0.00030684,6]
[385841788,1758059463467,-515.25764643,0.00030684,6]
[385841789,1758059463477,-400.0,0.00030684,6]
[385841790,1758059463487,-246.2098377,0.00030684,6]
[385841791,1758059463496,-400.0,0.00030684,6]
[385841792,1758059463505,-400.0,0.00030684,6]
[385841793,1758059463515,-400.0,0.00030684,6]
[385841794,1758059463524,-547.93,0.00030684,6]
[385841795,1758059463534,-400.0,0.00030684,6]
[385841796,1758059463543,-400.0,0.00030684,6]
[385841797,1758059463552,-400.0,0.00030684,6]
[385841798,1758059463562,-681.13,0.00030684,6]
[385841799,1758059463571,-474.55,0.00030684,6]
[385841800,1758059463581,-445.76,0.00030684,6]
[385841801,1758059463590,-400.0,0.00030684,6]
[385841802,1758059463599,-400.0,0.00030684,6]
[385841803,1758059463608,-520.69,0.00030684,6]
[385841804,1758059463617,-400.0,0.00030684,6]
[385841805,1758059463627,-402.9,0.00030684,6]
[385841806,1758059463636,-400.0,0.00030684,6]
[385841807,1758059463646,-400.0,0.00030684,6]
[385841808,1758059463816,-400.0,0.00030684,6]
[385841809,1758059463826,-400.0,0.00030684,6]
[385841810,1758059463835,-400.0,0.00030684,6]
[385841811,1758059463844,-400.0,0.00030684,6]
[385841812,1758059463853,-400.0,0.00030684,6]
[385841813,1758059463862,-400.0,0.00030684,6]
[385841814,1758059463872,-400.0,0.00030684,6]
[385841815,1758059463881,-520.75,0.00030684,6]
[385841816,1758059463891,-505.98,0.00030684,6]
[385841817,1758059463900,-438.72,0.00030684,6]
[385841818,1758059463909,-930.22,0.00030684,6]
[385841819,1758059463919,-400.0,0.00030684,6]
[385841820,1758059463928,-400.0,0.00030684,6]
[385841821,1758059463938,-400.0,0.00030684,6]
[385841822,1758059463947,-691.69,0.00030684,6]
[385841823,1758059463956,-541.46,0.00030684,6]
[385841824,1758059463965,-400.0,0.00030684,6]
[385841825,1758059463974,-400.0,0.00030684,6]
[385841826,1758059463984,-400.0,0.00030684,6]
[385841827,1758059463993,-214.78598755,0.00030684,6]
[385841828,1758059464002,-400.0,0.00030684,6]
[385841829,1758059464011,-400.0,0.00030684,6]
[385841830,1758059464020,-400.0,0.00030684,6]
[385841831,1758059464030,-840.93,0.00030684,6]
[385841832,1758059464039,-400.0,0.00030684,6]
[385841833,1758059464048,-400.0,0.00030684,6]
[385841834,1758059464058,-400.0,0.00030684,6]
[385841835,1758059464067,-400.0,0.00030684,6]
[385841836,1758059464076,-400.0,0.00030684,6]
[385841837,1758059464086,-400.0,0.00030684,6]
[385841838,1758059464096,-531.61,0.00030684,6]
[385841839,1758059464105,-400.0,0.00030684,6]
[385841840,1758059464114,-400.0,0.00030684,6]
[385841841,1758059464124,-400.0,0.00030684,6]
[385841842,1758059464133,-400.0,0.00030684,6]